[Event "MČR juniorů a juniorek v rapid šachu 2024"]
[Site "Hotel Fit Fun, Harrachov, Czech Republic"]
[Date "2024.09.21"]
[Round "4.20"]
[White "Garabik Marek"]
[Black "Hudik Martin"]
[Result "1-0"]
[TimeControl "20+5"]
[WhiteFideId "23717742"]
[BlackFideId "23769947"]
[WhiteElo "1933"]
[BlackElo "1572"]

1. e4 {[%clk 00:20:09]} {[%emt 00:13:25]} c5 {[%clk 00:20:09]} 2. Nc3 {[%clk
00:20:12]} {[%emt 00:00:02]} Nc6 {[%clk 00:20:09]} {[%emt 00:00:05]} 3. f4
{[%clk 00:20:16]} d6 {[%clk 00:20:09]} {[%emt 00:00:05]} 4. Nf3 {[%clk
00:20:20]} Nf6 {[%clk 00:20:11]} {[%emt 00:00:03]} 5. Bb5 {[%clk 00:20:23]}
{[%emt 00:00:03]} e6 {[%clk 00:19:33]} {[%emt 00:00:42]} 6. Bxc6+ {[%clk
00:20:27]} {[%emt 00:00:02]} bxc6 {[%clk 00:19:36]} {[%emt 00:00:01]} 7. d3
{[%clk 00:20:30]} {[%emt 00:00:02]} Be7 {[%clk 00:19:34]} {[%emt 00:00:07]} 8.
O-O {[%clk 00:20:32]} {[%emt 00:00:03]} O-O {[%clk 00:19:34]} {[%emt 00:00:05]}
9. h3 {[%clk 00:20:35]} Nd7 {[%clk 00:19:25]} {[%emt 00:00:15]} 10. Qe2 {[%clk
00:20:20]} {[%emt 00:00:20]} d5 {[%clk 00:19:20]} {[%emt 00:00:10]} 11. e5
{[%clk 00:20:21]} {[%emt 00:00:03]} f6 {[%clk 00:19:19]} {[%emt 00:00:07]} 12.
b3 {[%clk 00:19:57]} {[%emt 00:00:29]} Re8 {[%clk 00:18:25]} {[%emt 00:00:59]}
13. Na4 {[%clk 00:19:28]} {[%emt 00:00:34]} Ba6 {[%clk 00:16:59]} {[%emt
00:01:31]} 14. c4 {[%clk 00:18:04]} {[%emt 00:01:29]} d4 {[%clk 00:16:29]}
{[%emt 00:00:35]} 15. Ba3 {[%clk 00:18:00]} {[%emt 00:00:09]} Qa5 {[%clk
00:15:38]} {[%emt 00:00:56]} 16. Rae1 {[%clk 00:16:27]} {[%emt 00:01:38]} Nb6
{[%clk 00:15:10]} {[%emt 00:00:34]} 17. Qd2 {[%clk 00:14:06]} {[%emt 00:02:25]}
Qxd2 {[%clk 00:14:10]} {[%emt 00:01:04]} 18. Nxd2 {[%clk 00:14:10]} Nxa4 {[%clk
00:13:35]} {[%emt 00:00:41]} 19. bxa4 {[%clk 00:14:14]} {[%emt 00:00:01]} f5
{[%clk 00:12:47]} {[%emt 00:00:53]} 20. Nb3 {[%clk 00:13:44]} {[%emt 00:00:35]}
Rad8 {[%clk 00:12:08]} {[%emt 00:00:44]} 21. Bxc5 {[%clk 00:13:38]} {[%emt
00:00:11]} Bxc5 {[%clk 00:11:40]} {[%emt 00:00:32]} 22. Nxc5 {[%clk 00:13:43]}
{[%emt 00:00:01]} Bc8 {[%clk 00:11:39]} {[%emt 00:00:06]} 23. Rb1 {[%clk
00:13:46]} {[%emt 00:00:01]} Re7 {[%clk 00:11:23]} {[%emt 00:00:21]} 24. Rf2
{[%clk 00:13:11]} {[%emt 00:00:40]} Rf8 {[%clk 00:10:45]} {[%emt 00:00:44]} 25.
Rfb2 {[%clk 00:13:09]} {[%emt 00:00:07]} h6 {[%clk 00:10:14]} {[%emt 00:00:35]}
26. Kf2 {[%clk 00:12:54]} {[%emt 00:00:21]} g5 {[%clk 00:10:10]} {[%emt
00:00:09]} 27. g3 {[%clk 00:12:57]} {[%emt 00:00:02]} Kg7 {[%clk 00:10:05]}
{[%emt 00:00:09]} 28. h4 {[%clk 00:11:58]} {[%emt 00:01:05]} g4 {[%clk
00:09:57]} {[%emt 00:00:14]} 29. Rb8 {[%clk 00:11:25]} {[%emt 00:00:37]} h5
{[%clk 00:09:18]} {[%emt 00:00:44]} 30. a5 {[%clk 00:10:00]} {[%emt 00:01:31]}
Kg8 {[%clk 00:08:57]} {[%emt 00:00:26]} 31. Ke2 {[%clk 00:10:03]} {[%emt
00:00:02]} Kg7 {[%clk 00:08:46]} {[%emt 00:00:17]} 32. Kd2 {[%clk 00:09:52]}
{[%emt 00:00:16]} Kg8 {[%clk 00:08:26]} {[%emt 00:00:24]} 33. Ra8 {[%clk
00:09:40]} {[%emt 00:00:17]} Kg7 {[%clk 00:08:06]} {[%emt 00:00:25]} 34. Rbb8
{[%clk 00:09:12]} {[%emt 00:00:33]} Ree8 {[%clk 00:07:07]} {[%emt 00:01:04]} 35.
Rxa7+ {[%clk 00:07:42]} {[%emt 00:01:35]} Rf7 {[%clk 00:06:46]} {[%emt
00:00:25]} 36. Raa8 {[%clk 00:07:36]} {[%emt 00:00:12]} Rff8 {[%clk 00:06:36]}
{[%emt 00:00:15]} 37. Nxe6+ {[%clk 00:07:24]} {[%emt 00:00:17]} 1-0



[ePGN "0.1;DGT LiveChess/2.2.6"]

[Event "MČR juniorů a juniorek v rapid šachu 2024"]
[Site "Hotel Fit Fun, Harrachov, Czech Republic"]
[Date "2024.09.21"]
[Round "4.21"]
[White "Nespora Tatana"]
[Black "Sulcova Tereza Radmila"]
[Result "0-1"]
[TimeControl "20+5"]
[WhiteFideId "392286"]
[BlackFideId "395196"]
[WhiteElo "1697"]
[BlackElo "1800"]

1. e4 {[%clk 00:19:59]} {[%emt 00:00:10]} g6 {[%clk 00:20:09]} {[%emt
00:00:01]} 2. d4 {[%clk 00:19:54]} {[%emt 00:00:10]} Nf6 {[%clk 00:20:13]} 3.
Nc3 {[%clk 00:19:56]} {[%emt 00:00:03]} d5 {[%clk 00:20:17]} {[%emt 00:00:03]}
4. e5 {[%clk 00:19:33]} {[%emt 00:00:26]} Nh5 {[%clk 00:20:20]} {[%emt
00:00:02]} 5. Be3 {[%clk 00:18:04]} {[%emt 00:01:33]} c6 {[%clk 00:20:12]}
{[%emt 00:00:14]} 6. Qd2 {[%clk 00:17:47]} {[%emt 00:00:22]} Ng7 {[%clk
00:19:30]} {[%emt 00:00:46]} 7. Bd3 {[%clk 00:17:01]} {[%emt 00:00:52]} Bf5
{[%clk 00:18:07]} {[%emt 00:01:28]} 8. O-O-O {[%clk 00:16:35]} {[%emt
00:00:31]} h5 {[%clk 00:17:11]} {[%emt 00:01:01]} 9. h3 {[%clk 00:16:19]}
{[%emt 00:00:20]} Qa5 {[%clk 00:15:32]} {[%emt 00:01:46]} 10. Kb1 {[%clk
00:15:27]} {[%emt 00:00:56]} Bxd3 {[%clk 00:15:08]} {[%emt 00:00:29]} 11. Qxd3
{[%clk 00:15:17]} {[%emt 00:00:15]} b5 {[%clk 00:15:04]} {[%emt 00:00:08]} 12.
Nf3 {[%clk 00:14:48]} {[%emt 00:00:34]} Na6 {[%clk 00:13:45]} {[%emt 00:01:25]}
13. Ng5 {[%clk 00:13:36]} {[%emt 00:01:17]} Nc7 {[%clk 00:13:48]} {[%emt
00:00:02]} 14. g4 {[%clk 00:11:37]} {[%emt 00:02:04]} Rb8 {[%clk 00:12:13]}
{[%emt 00:01:40]} 15. f4 {[%clk 00:11:24]} {[%emt 00:00:18]} e6 {[%clk
00:12:11]} {[%emt 00:00:06]} 16. Rhf1 {[%clk 00:10:43]} {[%emt 00:00:46]} Rb6
{[%clk 00:11:45]} {[%emt 00:00:31]} 17. f5 {[%clk 00:10:11]} {[%emt 00:00:37]}
gxf5 {[%clk 00:10:10]} {[%emt 00:01:40]} 18. gxf5 {[%clk 00:10:13]} {[%emt
00:00:03]} Ra6 {[%clk 00:09:59]} {[%emt 00:00:16]} 19. fxe6 {[%clk 00:07:51]}
{[%emt 00:02:27]} b4 {[%clk 00:09:27]} {[%emt 00:00:37]} 20. exf7+ {[%clk
00:06:25]} {[%emt 00:01:31]} Kd8 {[%clk 00:09:31]} {[%emt 00:00:01]} 21. Ne2
{[%clk 00:04:57]} {[%emt 00:01:33]} Qxa2+ {[%clk 00:09:18]} {[%emt 00:00:18]}
22. Kc1 {[%clk 00:05:01]} {[%emt 00:00:01]} Qa1+ {[%clk 00:08:52]} {[%emt
00:00:31]} 23. Kd2 {[%clk 00:05:05]} {[%emt 00:00:01]} Qxb2 {[%clk 00:08:55]}
{[%emt 00:00:02]} 24. Rb1 {[%clk 00:03:45]} {[%emt 00:01:25]} Qa3 {[%clk
00:08:19]} {[%emt 00:00:41]} 25. Qxa3 {[%clk 00:03:41]} {[%emt 00:00:09]} Rxa3
{[%clk 00:08:05]} {[%emt 00:00:19]} 26. Nf4 {[%clk 00:03:39]} {[%emt 00:00:07]}
Rh6 {[%clk 00:07:14]} {[%emt 00:00:56]} 27. Ra1 {[%clk 00:02:21]} {[%emt
00:01:23]} Nb5 {[%clk 00:06:12]} {[%emt 00:01:07]} 28. Bf2 {[%clk 00:01:36]}
{[%emt 00:00:51]} h4 {[%clk 00:04:27]} {[%emt 00:01:49]} 29. Rae1 {[%clk
00:01:40]} Nc7 {[%clk 00:03:47]} {[%emt 00:00:46]} 30. e6 {[%clk 00:01:36]}
{[%emt 00:00:09]} Nf5 {[%clk 00:03:19]} {[%emt 00:00:33]} 31. Ng2 {[%clk
00:01:04]} {[%emt 00:00:37]} Rh5 {[%clk 00:02:23]} {[%emt 00:01:01]} 32. Bxh4
{[%clk 00:01:07]} {[%emt 00:00:02]} Nxh4 {[%clk 00:02:26]} {[%emt 00:00:02]} 33.
e7+ {[%clk 00:01:10]} {[%emt 00:00:02]} Bxe7 {[%clk 00:02:21]} {[%emt
00:00:10]} 34. Rxe7 {[%clk 00:01:13]} {[%emt 00:00:02]} Ng6 {[%clk 00:01:57]}
{[%emt 00:00:28]} 35. Re6 {[%clk 00:00:45]} {[%emt 00:00:34]} Nf8 {[%clk
00:01:13]} {[%emt 00:00:49]} 36. Re5 {[%clk 00:00:38]} {[%emt 00:00:12]} Rg3
{[%clk 00:01:08]} {[%emt 00:00:11]} 37. Ne6+ {[%clk 00:00:12]} {[%emt
00:00:31]} Ncxe6 {[%clk 00:01:11]} {[%emt 00:00:02]} 38. Rxh5 {[%clk 00:00:16]}
Rxg2+ {[%clk 00:01:14]} {[%emt 00:00:02]} 39. Kd3 {[%clk 00:00:21]} Rg3+ {[%clk
00:01:00]} {[%emt 00:00:19]} 40. Kd2 {[%clk 00:00:21]} {[%emt 00:00:04]} Ke7
{[%clk 00:00:35]} {[%emt 00:00:31]} 41. h4 {[%clk 00:00:13]} {[%emt 00:00:13]}
Rg4 {[%clk 00:00:32]} {[%emt 00:00:08]} 42. Kd3 {[%clk 00:00:16]} {[%emt
00:00:03]} Rxd4+ {[%clk 00:00:33]} {[%emt 00:00:03]} 43. Ke3 {[%clk 00:00:18]}
{[%emt 00:00:03]} Re4+ {[%clk 00:00:33]} {[%emt 00:00:05]} 44. Kd3 {[%clk
00:00:22]} Nf4+ {[%clk 00:00:33]} {[%emt 00:00:05]} 45. Kd2 {[%clk 00:00:23]}
{[%emt 00:00:04]} Nxh5 {[%clk 00:00:35]} {[%emt 00:00:03]} 46. Ra1 {[%clk
00:00:27]} Kxf7 {[%clk 00:00:36]} {[%emt 00:00:05]} 47. Rxa7+ {[%clk 00:00:31]}
{[%emt 00:00:01]} Ke6 {[%clk 00:00:40]} 48. Ra6 {[%clk 00:00:35]} {[%emt
00:00:01]} Kd6 {[%clk 00:00:44]} {[%emt 00:00:02]} 49. Kd3 {[%clk 00:00:38]}
{[%emt 00:00:01]} Rxh4 {[%clk 00:00:46]} {[%emt 00:00:03]} 50. Ra4 {[%clk
00:00:41]} {[%emt 00:00:02]} Ne6 {[%clk 00:00:49]} {[%emt 00:00:02]} 51. c3
{[%clk 00:00:43]} {[%emt 00:00:03]} Rh3+ {[%clk 00:00:50]} {[%emt 00:00:04]} 52.
Kd2 {[%clk 00:00:47]} {[%emt 00:00:02]} bxc3+ {[%clk 00:00:53]} {[%emt
00:00:02]} 0-1



[ePGN "0.1;DGT LiveChess/2.2.6"]

[Event "MČR juniorů a juniorek v rapid šachu 2024"]
[Site "Hotel Fit Fun, Harrachov, Czech Republic"]
[Date "2024.09.21"]
[Round "4.22"]
[White "Siles Jan"]
[Black "Budil Vaclav"]
[Result "1/2-1/2"]
[TimeControl "20+5"]
[WhiteFideId "23715405"]
[BlackFideId "23776226"]
[WhiteElo "1873"]
[BlackElo "1697"]

1. e4 {[%clk 00:20:04]} {[%emt 00:00:05]} c5 {[%clk 00:20:10]} {[%emt
00:00:01]} 2. Nc3 {[%clk 00:20:07]} {[%emt 00:00:02]} Nc6 {[%clk 00:20:14]} 3.
Bb5 {[%clk 00:20:09]} {[%emt 00:00:02]} Nd4 {[%clk 00:20:17]} {[%emt 00:00:01]}
4. Nf3 {[%clk 00:20:13]} a6 {[%clk 00:20:21]} {[%emt 00:00:02]} 5. Bd3 {[%clk
00:20:11]} {[%emt 00:00:06]} g6 {[%clk 00:20:17]} {[%emt 00:00:11]} 6. O-O
{[%clk 00:19:50]} {[%emt 00:00:25]} Bg7 {[%clk 00:20:20]} {[%emt 00:00:02]} 7.
Nxd4 {[%clk 00:19:35]} {[%emt 00:00:20]} Bxd4 {[%clk 00:20:20]} {[%emt
00:00:05]} 8. Ne2 {[%clk 00:19:39]} {[%emt 00:00:01]} Bg7 {[%clk 00:20:23]}
{[%emt 00:00:02]} 9. c3 {[%clk 00:19:31]} {[%emt 00:00:13]} d5 {[%clk
00:20:22]} {[%emt 00:00:06]} 10. exd5 {[%clk 00:18:48]} {[%emt 00:00:48]} Qxd5
{[%clk 00:20:21]} {[%emt 00:00:06]} 11. Bc2 {[%clk 00:18:23]} {[%emt 00:00:30]}
Nf6 {[%clk 00:20:20]} {[%emt 00:00:07]} 12. Nf4 {[%clk 00:16:24]} {[%emt
00:02:03]} Qd6 {[%clk 00:20:11]} {[%emt 00:00:14]} 13. d4 {[%clk 00:14:37]}
{[%emt 00:01:53]} cxd4 {[%clk 00:20:06]} {[%emt 00:00:10]} 14. cxd4 {[%clk
00:14:28]} {[%emt 00:00:14]} O-O {[%clk 00:19:56]} {[%emt 00:00:14]} 15. h3
{[%clk 00:12:37]} {[%emt 00:01:55]} Rd8 {[%clk 00:19:42]} {[%emt 00:00:20]} 16.
Be3 {[%clk 00:12:02]} {[%emt 00:00:40]} Nd5 {[%clk 00:18:16]} {[%emt 00:01:31]}
17. Nxd5 {[%clk 00:10:46]} {[%emt 00:01:22]} Qxd5 {[%clk 00:18:17]} {[%emt
00:00:04]} 18. Bb3 {[%clk 00:09:06]} {[%emt 00:01:44]} Qd6 {[%clk 00:18:05]}
{[%emt 00:00:16]} 19. Qf3 {[%clk 00:08:48]} {[%emt 00:00:24]} Qf6 {[%clk
00:17:11]} {[%emt 00:00:59]} 20. Qe4 {[%clk 00:07:42]} {[%emt 00:01:10]} Rb8
{[%clk 00:16:44]} {[%emt 00:00:32]} 21. Bf4 {[%clk 00:05:29]} {[%emt 00:02:19]}
Bf5 {[%clk 00:16:24]} {[%emt 00:00:26]} 22. Qe3 {[%clk 00:04:52]} {[%emt
00:00:42]} Rbc8 {[%clk 00:16:11]} {[%emt 00:00:18]} 23. Be5 {[%clk 00:04:54]}
{[%emt 00:00:02]} Qb6 {[%clk 00:15:39]} {[%emt 00:00:37]} 24. Bxg7 {[%clk
00:04:35]} {[%emt 00:00:24]} Kxg7 {[%clk 00:15:42]} {[%emt 00:00:01]} 25. Qxe7
{[%clk 00:03:44]} {[%emt 00:00:57]} Rd7 {[%clk 00:15:18]} {[%emt 00:00:29]} 26.
Qe5+ {[%clk 00:03:36]} {[%emt 00:00:12]} f6 {[%clk 00:14:59]} {[%emt 00:00:24]}
27. Qe2 {[%clk 00:03:13]} {[%emt 00:00:28]} Qxd4 {[%clk 00:14:18]} {[%emt
00:00:47]} 28. Rad1 {[%clk 00:02:51]} {[%emt 00:00:26]} Qe5 {[%clk 00:14:14]}
{[%emt 00:00:10]} 29. Qf3 {[%clk 00:02:18]} {[%emt 00:00:38]} Rcd8 {[%clk
00:13:52]} {[%emt 00:00:26]} 30. g4 {[%clk 00:01:12]} {[%emt 00:01:12]} Be4
{[%clk 00:13:07]} {[%emt 00:00:50]} 31. Qe2 {[%clk 00:00:39]} {[%emt 00:00:38]}
Bd3 {[%clk 00:05:33]} {[%emt 00:07:39]} 32. Qxe5 {[%clk 00:00:33]} {[%emt
00:00:11]} fxe5 {[%clk 00:05:37]} {[%emt 00:00:01]} 33. Rfe1 {[%clk 00:00:37]}
e4 {[%clk 00:05:41]} {[%emt 00:00:01]} 34. Re3 {[%clk 00:00:23]} {[%emt
00:00:20]} Rd6 {[%clk 00:03:43]} {[%emt 00:02:03]} 35. Kg2 {[%clk 00:00:16]}
{[%emt 00:00:11]} R8d7 {[%clk 00:03:38]} {[%emt 00:00:10]} 36. Kg3 {[%clk
00:00:15]} {[%emt 00:00:07]} g5 {[%clk 00:03:35]} {[%emt 00:00:08]} 37. Rd2
{[%clk 00:00:14]} {[%emt 00:00:06]} Bb1 {[%clk 00:02:19]} {[%emt 00:01:20]} 38.
Rxd6 {[%clk 00:00:12]} {[%emt 00:00:07]} Rxd6 {[%clk 00:02:23]} 39. f3 {[%clk
00:00:15]} {[%emt 00:00:03]} exf3 {[%clk 00:02:20]} {[%emt 00:00:06]} 40. Rxf3
{[%clk 00:00:15]} {[%emt 00:00:06]} Bg6 {[%clk 00:01:39]} {[%emt 00:00:46]} 41.
Rc3 {[%clk 00:00:13]} {[%emt 00:00:07]} Rd3+ {[%clk 00:00:45]} {[%emt
00:00:59]} 42. Rxd3 {[%clk 00:00:10]} {[%emt 00:00:09]} Bxd3 {[%clk 00:00:48]}
43. Be6 {[%clk 00:00:14]} {[%emt 00:00:02]} b6 {[%clk 00:00:37]} {[%emt
00:00:16]} 44. a3 {[%clk 00:00:12]} {[%emt 00:00:06]} Kf6 {[%clk 00:00:40]}
{[%emt 00:00:02]} 45. Bc8 {[%clk 00:00:14]} {[%emt 00:00:03]} a5 {[%clk
00:00:31]} {[%emt 00:00:14]} 46. h4 {[%clk 00:00:15]} {[%emt 00:00:05]} gxh4+
{[%clk 00:00:33]} {[%emt 00:00:03]} 47. Kxh4 {[%clk 00:00:19]} {[%emt
00:00:01]} Kg6 {[%clk 00:00:25]} {[%emt 00:00:13]} 48. Bd7 {[%clk 00:00:15]}
{[%emt 00:00:08]} Kh6 {[%clk 00:00:17]} {[%emt 00:00:13]} 49. Be8 {[%clk
00:00:14]} {[%emt 00:00:06]} Bc2 {[%clk 00:00:12]} {[%emt 00:00:10]} 50. g5+
{[%clk 00:00:14]} {[%emt 00:00:05]} Kg7 {[%clk 00:00:16]} 51. Kg3 {[%clk
00:00:14]} {[%emt 00:00:05]} Kf8 {[%clk 00:00:13]} {[%emt 00:00:08]} 52. Bb5
{[%clk 00:00:11]} {[%emt 00:00:08]} Ke7 {[%clk 00:00:11]} {[%emt 00:00:07]} 53.
Kf4 {[%clk 00:00:12]} {[%emt 00:00:04]} Kd6 {[%clk 00:00:12]} {[%emt 00:00:04]}
54. Be2 {[%clk 00:00:08]} {[%emt 00:00:09]} Kd5 {[%clk 00:00:08]} {[%emt
00:00:09]} 55. Bg4 {[%clk 00:00:09]} {[%emt 00:00:04]} Kd6 {[%clk 00:00:07]}
{[%emt 00:00:06]} 56. Bf3 {[%clk 00:00:08]} {[%emt 00:00:06]} Bg6 {[%clk
00:00:11]} {[%emt 00:00:02]} 57. Bg4 {[%clk 00:00:11]} {[%emt 00:00:02]} Kd5
{[%clk 00:00:14]} {[%emt 00:00:01]} 1/2-1/2



[ePGN "0.1;DGT LiveChess/2.2.6"]

[Event "MČR juniorů a juniorek v rapid šachu 2024"]
[Site "Hotel Fit Fun, Harrachov, Czech Republic"]
[Date "2024.09.21"]
[Round "4.23"]
[White "Pes Matej"]
[Black "Urbansky Stepan"]
[Result "0-1"]
[TimeControl "20+5"]
[WhiteFideId "23766816"]
[BlackFideId "23761741"]
[WhiteElo "1697"]
[BlackElo "1837"]

1. f4 {[%clk 00:20:08]} {[%emt 01:23:40]} c5 {[%clk 00:19:43]} {[%emt
00:00:27]} 2. Nf3 {[%clk 00:20:06]} {[%emt 00:00:07]} d5 {[%clk 00:19:11]}
{[%emt 00:00:37]} 3. e3 {[%clk 00:20:04]} {[%emt 00:00:07]} a6 {[%clk
00:19:07]} {[%emt 00:00:08]} 4. b3 {[%clk 00:20:02]} {[%emt 00:00:07]} g6
{[%clk 00:18:52]} {[%emt 00:00:21]} 5. Bb2 {[%clk 00:20:00]} {[%emt 00:00:07]}
Nf6 {[%clk 00:18:54]} {[%emt 00:00:03]} 6. Be2 {[%clk 00:19:04]} {[%emt
00:01:01]} Bg7 {[%clk 00:18:45]} {[%emt 00:00:13]} 7. O-O {[%clk 00:18:51]}
{[%emt 00:00:18]} O-O {[%clk 00:18:35]} {[%emt 00:00:15]} 8. Ne5 {[%clk
00:18:08]} {[%emt 00:00:50]} Nc6 {[%clk 00:18:14]} {[%emt 00:00:25]} 9. d3
{[%clk 00:17:54]} {[%emt 00:00:19]} d4 {[%clk 00:15:50]} {[%emt 00:02:30]} 10.
Nxc6 {[%clk 00:17:44]} {[%emt 00:00:14]} bxc6 {[%clk 00:15:52]} {[%emt
00:00:03]} 11. e4 {[%clk 00:17:46]} {[%emt 00:00:04]} h5 {[%clk 00:14:48]}
{[%emt 00:01:08]} 12. h3 {[%clk 00:16:37]} {[%emt 00:01:14]} a5 {[%clk
00:13:29]} {[%emt 00:01:24]} 13. Nd2 {[%clk 00:16:12]} {[%emt 00:00:30]} a4
{[%clk 00:13:12]} {[%emt 00:00:22]} 14. Nc4 {[%clk 00:15:50]} {[%emt 00:00:27]}
Ba6 {[%clk 00:12:26]} {[%emt 00:00:52]} 15. g4 {[%clk 00:13:50]} {[%emt
00:02:04]} Bxc4 {[%clk 00:12:01]} {[%emt 00:00:30]} 16. bxc4 {[%clk 00:13:51]}
{[%emt 00:00:04]} hxg4 {[%clk 00:11:23]} {[%emt 00:00:44]} 17. hxg4 {[%clk
00:13:32]} {[%emt 00:00:23]} Ne8 {[%clk 00:09:32]} {[%emt 00:01:56]} 18. Rf2
{[%clk 00:12:51]} {[%emt 00:00:45]} f6 {[%clk 00:09:14]} {[%emt 00:00:24]} 19.
Rh2 {[%clk 00:12:12]} {[%emt 00:00:44]} Kf7 {[%clk 00:09:12]} {[%emt 00:00:07]}
20. Qf1 {[%clk 00:10:08]} {[%emt 00:02:08]} Nc7 {[%clk 00:08:52]} {[%emt
00:00:26]} 21. Ba3 {[%clk 00:09:21]} {[%emt 00:00:52]} Na6 {[%clk 00:07:58]}
{[%emt 00:00:59]} 22. e5 {[%clk 00:08:58]} {[%emt 00:00:27]} Rh8 {[%clk
00:07:48]} {[%emt 00:00:15]} 23. Rxh8 {[%clk 00:07:42]} {[%emt 00:01:22]} Qxh8
{[%clk 00:07:45]} {[%emt 00:00:08]} 24. Bf3 {[%clk 00:07:41]} {[%emt 00:00:06]}
Rc8 {[%clk 00:06:18]} {[%emt 00:01:32]} 25. Rb1 {[%clk 00:06:25]} {[%emt
00:01:21]} Qd8 {[%clk 00:04:09]} {[%emt 00:02:14]} 26. f5 {[%clk 00:05:26]}
{[%emt 00:01:04]} gxf5 {[%clk 00:03:49]} {[%emt 00:00:25]} 27. gxf5 {[%clk
00:04:53]} {[%emt 00:00:38]} fxe5 {[%clk 00:03:34]} {[%emt 00:00:20]} 28. Qh3
{[%clk 00:03:48]} {[%emt 00:01:10]} Rb8 {[%clk 00:01:50]} {[%emt 00:01:50]} 29.
Qh5+ {[%clk 00:02:36]} {[%emt 00:01:16]} Kf8 {[%clk 00:01:36]} {[%emt
00:00:20]} 30. Rf1 {[%clk 00:02:19]} {[%emt 00:00:22]} Qd6 {[%clk 00:01:16]}
{[%emt 00:00:24]} 31. Be4 {[%clk 00:01:53]} {[%emt 00:00:30]} Nb4 {[%clk
00:00:50]} {[%emt 00:00:32]} 32. Rf2 {[%clk 00:00:47]} {[%emt 00:01:12]} Qh6
{[%clk 00:00:46]} {[%emt 00:00:08]} 33. Qxh6 Bxh6 {[%clk 00:00:50]} 34. f6
{[%clk 00:00:42]} {[%emt 00:00:02]} Be3 {[%clk 00:00:51]} {[%emt 00:00:03]} 35.
fxe7+ {[%clk 00:00:44]} {[%emt 00:00:02]} Kxe7 {[%clk 00:00:55]} {[%emt
00:00:01]} 36. Bxb4 {[%clk 00:00:42]} {[%emt 00:00:08]} cxb4 {[%clk 00:00:57]}
{[%emt 00:00:03]} 37. Bxc6 {[%clk 00:00:45]} {[%emt 00:00:02]} Rf8 {[%clk
00:01:01]} {[%emt 00:00:02]} 38. Bxa4 {[%clk 00:00:35]} {[%emt 00:00:15]} Rxf2
{[%clk 00:01:00]} {[%emt 00:00:06]} 39. Kh1 {[%clk 00:00:33]} {[%emt 00:00:07]}
Kf6 {[%clk 00:00:56]} {[%emt 00:00:08]} 40. c5 {[%clk 00:00:27]} {[%emt
00:00:10]} Kg5 {[%clk 00:00:51]} {[%emt 00:00:11]} 0-1



[ePGN "0.1;DGT LiveChess/2.2.6"]

[Event "MČR juniorů a juniorek v rapid šachu 2024"]
[Site "Hotel Fit Fun, Harrachov, Czech Republic"]
[Date "2024.09.21"]
[Round "4.24"]
[White "Sknouril Jakub"]
[Black "Vratil Tomas"]
[Result "1-0"]
[TimeControl "20+5"]
[WhiteFideId "23731133"]
[BlackFideId "23756870"]
[WhiteElo "1806"]
[BlackElo "1671"]

1. e4 {[%clk 00:20:00]} {[%emt 00:00:09]} c6 {[%clk 00:20:06]} {[%emt
00:00:04]} 2. Nc3 {[%clk 00:20:03]} {[%emt 00:00:02]} d5 {[%clk 00:20:08]}
{[%emt 00:00:05]} 3. Nf3 {[%clk 00:20:07]} Bg4 {[%clk 00:20:06]} {[%emt
00:00:07]} 4. h3 {[%clk 00:20:11]} Bh5 {[%clk 00:19:57]} {[%emt 00:00:14]} 5.
d4 {[%clk 00:19:55]} {[%emt 00:00:21]} e6 {[%clk 00:19:47]} {[%emt 00:00:15]} 6.
exd5 {[%clk 00:19:47]} {[%emt 00:00:12]} exd5 {[%clk 00:19:39]} {[%emt
00:00:14]} 7. Bd3 {[%clk 00:19:41]} {[%emt 00:00:10]} Bd6 {[%clk 00:19:31]}
{[%emt 00:00:13]} 8. O-O {[%clk 00:19:43]} {[%emt 00:00:03]} Ne7 {[%clk
00:19:20]} {[%emt 00:00:16]} 9. Re1 {[%clk 00:19:04]} {[%emt 00:00:44]} O-O
{[%clk 00:19:10]} {[%emt 00:00:14]} 10. Bxh7+ {[%clk 00:17:51]} {[%emt
00:01:18]} Kh8 {[%clk 00:18:32]} {[%emt 00:00:43]} 11. Bd3 {[%clk 00:17:51]}
{[%emt 00:00:06]} Nd7 {[%clk 00:18:10]} {[%emt 00:00:27]} 12. g4 {[%clk
00:17:26]} {[%emt 00:00:30]} Bg6 {[%clk 00:17:51]} {[%emt 00:00:23]} 13. Bg5
{[%clk 00:17:00]} {[%emt 00:00:31]} f6 {[%clk 00:16:01]} {[%emt 00:01:56]} 14.
Be3 {[%clk 00:15:13]} {[%emt 00:01:52]} Qc7 {[%clk 00:15:26]} {[%emt 00:00:40]}
15. Bxg6 {[%clk 00:14:09]} {[%emt 00:01:08]} Nxg6 {[%clk 00:15:30]} {[%emt
00:00:02]} 16. Qd3 {[%clk 00:14:13]} Nf4 {[%clk 00:15:24]} {[%emt 00:00:11]} 17.
Bxf4 {[%clk 00:14:00]} {[%emt 00:00:19]} Bxf4 {[%clk 00:15:27]} {[%emt
00:00:02]} 18. Nh4 {[%clk 00:13:59]} {[%emt 00:00:06]} Rfe8 {[%clk 00:14:41]}
{[%emt 00:00:50]} 19. Qf5 {[%clk 00:13:20]} {[%emt 00:00:44]} Nf8 {[%clk
00:13:01]} {[%emt 00:01:44]} 20. Rxe8 {[%clk 00:12:26]} {[%emt 00:00:59]} Rxe8
{[%clk 00:13:05]} {[%emt 00:00:02]} 21. Qh5+ {[%clk 00:12:30]} {[%emt
00:00:01]} 1-0



[ePGN "0.1;DGT LiveChess/2.2.6"]